Cogmind - Beta 14 @@@ ROGUE MODE // 2024.11.06 @ 11:27:28 Player: 7604 Result: Self-destructed Performance ------------- Evolutions (5) 2500 Regions Visited (10) 2000 Robots Destroyed (117) 585 Value Destroyed (3705) 3705 Prototype IDs (31) 620 Alien Tech Used (0) 0 Bonus (-1988) -1988 TOTAL SCORE: 7422 Bonus ------- High Alert Combat Kills 575 Follower Combat Kills 404 Aligned with FarCom 300 Friendly Fire -3267 Cogmind --------- Core Integrity 742/1000 Matter 158/300 Energy 150/150 System Corruption 10% Temperature Cool (0) Movement Core (200) Ox3 Location -5/Factory Parts ------- > --- POWER (1) -------- Micro Fission Core > --- PROPULSION (7) --- (None) > --- UTILITY (7) ------ Improved Heat Sink Hacking Suite Hacking Suite > --- WEAPON (2) ------- KE Penetrator > --- INVENTORY (5) ---- Improved Transmission Jammer Advanced ECM Suite Thermic Laser Improved Datajack Plasma Cutter Peak State ------------ > --- POWER ------------ Light Angular Momentum Engine > --- PROPULSION ------- Nuclear Pulse Thruster Nuclear Pulse Thruster Nuclear Pulse Thruster Nuclear Pulse Thruster Field Propulsion Drive Nuclear Pulse Array > --- UTILITY ---------- Power Amplifier Terrain Scanner Improved Transmission Jammer Improved Medium Armor Plating Hacking Suite Advanced Hacking Suite Mini Drone Bay > --- WEAPON ----------- KE Penetrator > --- INVENTORY -------- Cold Fusion Reactor Advanced Heat Sink Advanced ECM Suite Thermic Laser Plasma Cutter [Rating: 82] Favorites ----------- Power Light Ion Engine Engine Light Ion Engine Power Core Micro Nuclear Core Reactor Cold Fusion Reactor Propulsion Aluminum Leg Leg Aluminum Leg Wheel Compact Wheel Flight Unit Nuclear Pulse Thruster Utility Hacking Suite Device Heat Sink Storage Large Storage Unit Processor Advanced Melee Analysis Suite Hackware Hacking Suite Protection Improved Light Armor Plating Weapon Medium Laser Energy Gun Medium Laser Energy Cannon YOLO Cannon Ballistic Gun Heavy Battle Rifle Ballistic Cannon Enhanced Gauss Cannon Launcher Long-range Missile Launcher Special Weapon Plasma Cutter Slashing Weapon Axe Special Melee Weapon Improved Datajack Build | -11 -10 -10 -10 -9 -8 -7 -6 -6 -6 -5 ------- Run | Yrd Mat Min Exi Min Mat Fac Fac Was Fac Fac Slots Evolved 10 | . . . . . 4 2 2 . . 2 Power . | . . . . . . . . . . . Propulsion 5 | . . . . . 2 1 1 . . 1 Utility 5 | . . . . . 2 1 1 . . 1 Weapon . | . . . . . . . . . . . Parts Attached 141 | 7 7 3 2 . 17 17 4 5 45 34 Power 14 | 1 1 . . . 2 1 . . 7 2 Engine 5 | 1 1 . . . 1 1 . . . 1 Core 8 | . . . . . 1 . . . 6 1 Reactor 1 | . . . . . . . . . 1 . Propulsion 38 | 2 3 . . . 7 4 2 . 13 7 Treads . | . . . . . . . . . . . Leg 19 | 2 3 . . . 7 4 2 . 1 . Wheel 6 | . . . . . . . . . 6 . Hover . | . . . . . . . . . . . Flight 13 | . . . . . . . . . 6 7 Utility 57 | 2 1 2 1 . 6 10 1 2 15 17 Device 30 | 1 1 2 . . . 6 1 2 7 10 Storage 3 | 1 . . 1 . . . . . 1 . Processor 4 | . . . . . 1 . . . . 3 Hackware 6 | . . . . . . 2 . . 2 2 Protection 14 | . . . . . 5 2 . . 5 2 Artifact . | . . . . . . . . . . . Weapon 32 | 2 2 1 1 . 2 2 1 3 10 8 Energy Gun 9 | 2 2 . . . 1 1 . . 1 2 Energy Cannon 3 | . . . 1 . . . . . . 2 Ballistic Gun 5 | . . 1 . . 1 . . . 1 2 Ballistic Cannon 7 | . . . . . . . . 2 4 1 Launcher 3 | . . . . . . . . 1 2 . Special Weapon 1 | . . . . . . . . . 1 . Impact Weapon . | . . . . . . . . . . . Slashing Weapon 2 | . . . . . . 1 . . 1 . Piercing Weapon . | . . . . . . . . . . . Special Melee Weapon 2 | . . . . . . . 1 . . 1 Unidentified Prototypes 3 | . . 1 . . . . . . 1 1 Parts Lost 54 | . 2 . . . 2 6 . . 30 14 Power 6 | . 1 . . . 1 . . . 4 . Propulsion 26 | . 1 . . . . 2 . . 17 6 Utility 17 | . . . . . 1 2 . . 7 7 Weapon 5 | . . . . . . 2 . . 2 1 Highest Loss Streak 14 | . 1 . . . 2 5 . . 14 7 To Critical Strikes . | . . . . . . . . . . . Average Slot Usage (%) 83 | . 99 100 93 85 88 92 85 99 67 70 Engine 6 | . 13 14 14 14 3 7 6 6 2 2 Core 1 | . . . . . 5 . . . 2 2 Leg 21 | . 27 28 28 28 36 35 36 40 14 . Wheel 2 | . . . . . . . . . 9 . Flight 4 | . . . . . . . . . 2 19 Device 10 | . 14 14 14 14 7 7 1 5 6 16 Storage 7 | . 14 14 14 14 9 7 6 6 3 . Hackware 5 | . . . . . . 9 13 13 6 13 Protection 6 | . . . . . 16 10 13 13 7 4 Energy Gun 6 | . 28 22 7 . . 4 . . . . Energy Cannon 1 | . . . 6 14 8 . . . . . Ballistic Gun 2 | . . 5 7 . . 4 . . . 2 Slashing Weapon 1 | . . . . . . 2 6 6 4 . Peak Build Rating 82 | 7 8 14 27 27 45 42 44 54 61 82 Average Rating 36 | 5 7 9 18 27 40 37 41 51 37 65 On Entrance 23 | . 7 7 11 27 27 26 36 44 54 19 Naked Turns 63 | . . . . . . . . . 63 . Heaviest Build 61 | 13 13 15 42 42 61 55 44 50 57 27 Greatest Support 96 | 20 20 20 20 20 58 76 89 89 96 44 Greatest Overweight (x) 3 | . . . 2 2 1 . . . 3 1 Average Overweight (x) . | . . . 1 2 . . . . . . Largest Inventory Capacity 15 | 8 8 8 15 15 15 15 15 15 15 5 Average Capacity 10 | 6 8 8 13 15 15 15 15 15 9 5 Most Carried 15 | 3 8 8 12 10 15 15 14 15 15 5 Average Carried 9 | 1 6 7 8 10 12 13 12 13 9 4 Final Capacity 15 | 8 8 8 15 15 15 15 15 15 5 5 Final Carried 15 | 2 7 8 10 10 13 14 12 15 5 5 Class Distribution -------------------- 50% | Mutant 27% | Hacker-Mutant 15% | Scavenger-Mutant 3% | Hacker-Scout 3% | Hacker-Sprinter Dominant Class ---------------- Mutant | -10/Materials Mutant | -10/Mines Mutant | -10/Exiles Mutant | -9/Mines Mutant | -8/Materials Mutant | -7/Factory Hacker-Mutant | -6/Factory Hacker-Mutant | -6/Waste Hacker-Mutant | -6/Factory Hacker-Mutant | -5/Factory Resources | -11 -10 -10 -10 -9 -8 -7 -6 -6 -6 -5 ----------- Run | Yrd Mat Min Exi Min Mat Fac Fac Was Fac Fac Matter Collected 1948 | 241 95 33 . . 175 198 26 107 543 530 Remotely . | . . . . . . . . . . . Salvage Created 3701 | 74 646 9 . . 1256 480 26 . 893 317 Parts 167 | 4 27 . . . 44 29 3 . 37 23 Haulers Intercepted 1 | . . . . . 1 . . . . . Recyclers Shooed 2 | . 2 . . . . . . . . . Parts Field Recycled . | . . . . . . . . . . . Retrieved Matter . | . . . . . . . . . . . Parts Self-Destructed . | . . . . . . . . . . . Prevented . | . . . . . . . . . . . Kills | -11 -10 -10 -10 -9 -8 -7 -6 -6 -6 -5 ------- Run | Yrd Mat Min Exi Min Mat Fac Fac Was Fac Fac Combat Hostiles Destroyed 72 | . 17 1 . . 31 7 . . 11 5 Melee 1 | . . . . . . . . . 1 . Guns 26 | . 17 1 . . . 7 . . . 1 Cannons 20 | . . . . . 13 . . . 3 4 AOE 22 | . . . . . 15 . . . 7 . Classes Destroyed 19 | 1 5 1 . . 7 1 . . 4 . Worker 9 | . 1 . . . 5 . . . 3 . Builder 4 | . . . . . 2 . . . 1 1 Tunneler 4 | 3 . . . . . . . . 1 . Hauler 1 | . . . . . 1 . . . . . Recycler 4 | . . . . . 2 1 . . 1 . Mechanic 3 | . . . . . . . . . 3 . Operator 5 | . 2 . . . . 1 1 . . 1 Watcher 5 | . 1 . . . . 3 . . 1 . Swarmer 10 | . 5 . . . 4 1 . . . . Cutter 1 | . . . . . . . . . 1 . Grunt 44 | . 12 . . . 21 5 . . 6 . Brawler 2 | . . . . . 1 . . . 1 . Duelist 1 | . . . . . . . . . 1 . Protector 1 | . . . . . . . . . 1 . Sentry 3 | . . . . . 3 . . . . . Hunter 2 | . . . . . 1 . . . . 1 Programmer 6 | . . . . . . 1 . . 1 4 Heavy 1 | . . . . . 1 . . . . . Assembled 1 | . . 1 . . . . . . . . Surgeon 1 | . . . . . . . . . 1 . Wasp 4 | . . . . . . . . . 4 . Thug 5 | . . . . . . . . . 5 . Savage 1 | . . . . . . . . . 1 . Best Kill Streak 11 | 3 4 1 . . 11 3 1 . 11 1 Combat Bots Only 10 | . 4 1 . . 10 3 . . 8 1 Max Kills in Single Turn 13 | 1 1 1 . . 4 1 1 . 13 1 Gunslinging . | . . . . . . . . . . . Exploded 4 | . . . . . 4 . . . 2 . Melee 1 | . . . . . . . . . 1 . Uniques/NPCs Destroyed . | . . . . . . . . . . . Combat | -11 -10 -10 -10 -9 -8 -7 -6 -6 -6 -5 -------- Run | Yrd Mat Min Exi Min Mat Fac Fac Was Fac Fac Hostile Shots Fired 704 | . 96 5 . . 75 71 . . 341 116 Missed 243 | . 30 1 . . 28 18 . . 123 43 Damage Taken 8220 | . 686 83 . . 810 1075 . . 4114 1452 Core 1246 | . 180 . . . 82 95 . . 631 258 Absorbed by Shields . | . . . . . . . . . . . Redirected to Shielding 13 | . . . . . . . . . 13 . Regen/Repaired (Parts) 383 | . . . . . . . . 196 187 . Core Remaining (%) 64 | 100 . . . 28 85 86 . . 25 . Volleys Fired 295 | 8 68 3 . . 32 49 . . 41 94 Largest 2 | 2 2 2 . . 1 2 . . 1 1 Hottest 100 | 100 100 83 . . 100 98 . . 65 90 Shots Fired 387 | 16 122 6 . . 32 74 . . 43 94 Gun 293 | 16 122 6 . . . 74 . . 6 69 Cannon 86 | . . . . . 32 . . . 29 25 Launcher 8 | . . . . . . . . . 8 . Special . | . . . . . . . . . . . Kinetic 134 | . . 3 . . . 39 . . 34 58 Thermal 245 | 16 122 3 . . 32 35 . . 1 36 Explosive 8 | . . . . . . . . . 8 . Electromagnetic . | . . . . . . . . . . . Robot Hit Streak 10 | 6 7 1 . . 4 8 . . 10 7 Robot Miss Streak 5 | 2 5 2 . . 3 5 . . 3 3 Penetration Max 1 | . . . . . . . . . . 1 Secondary Targets 1 | . 1 . . . . . . . . . Max Gunslinging Chain 1 | . 1 . . . . . . . . . Shots Hit Robots 231 | 10 74 2 . . 17 52 1 . 37 38 Core Hits 189 | 4 36 2 . . 41 22 1 . 70 13 Critical Kills 3 | . . . . . 3 . . . . . Critical Parts Destroyed . | . . . . . . . . . . . Critical Strikes 21 | 2 10 . . . 3 2 . . 4 . Burn 14 | 2 10 . . . . 2 . . . . Meltdown 3 | . . . . . 3 . . . . . Blast 2 | . . . . . . . . . 2 . Sever 2 | . . . . . . . . . 2 . Melee Attacks 28 | . . . . . . 9 1 . 18 . Impact . | . . . . . . . . . . . Slashing 28 | . . . . . . 9 1 . 18 . Piercing . | . . . . . . . . . . . Sneak Attacks 5 | . . . . . . 2 1 . 2 . Combat Hostiles 1 | . . . . . . 1 . . . . Follow-up Attacks . | . . . . . . . . . . . Damage Inflicted 14968 | 126 962 38 . 3 6139 1221 67 . 5228 1184 Guns 2591 | 126 956 31 . . . 934 . . 65 479 Cannons 3786 | . . . . . 2556 . . . 525 705 Explosions 7806 | . . . . . 3579 . . . 4227 . Melee 739 | . . . . . . 262 67 . 410 . Ramming 46 | . 6 7 . 3 4 25 . . 1 . Kinetic 1634 | . . 19 . . . 627 . . 572 416 Thermal 8142 | 126 956 12 . . 5955 307 . . 18 768 Explosive 4346 | . . . . . 119 . . . 4227 . Electromagnetic 61 | . . . . . 61 . . . . . Impact . | . . . . . . . . . . . Slashing 739 | . . . . . . 262 67 . 410 . Piercing . | . . . . . . . . . . . Highest Corruption 13 | . . . . . . 13 . . 5 10 Average Corruption 4 | . . . . . . 12 . . 2 5 Corruption Purged . | . . . . . . . . . . . Corruption Blocked . | . . . . . . . . . . . Effects 42 | . . . . . . 14 . . 15 13 Message Errors 11 | . . . . . . 1 . . 7 3 Matter Fused 8 | . . . . . . 3 . . 2 3 Heat Flow Errors 4 | . . . . . . 3 . . 1 . Energy Discharges 3 | . . . . . . 1 . . . 2 Parts Rejected 2 | . . . . . . . . . 1 1 Parts Fused 3 | . . . . . . . . . 1 2 Data Loss (minor) 5 | . . . . . . 3 . . 1 1 Data Loss (major) 1 | . . . . . . . . . . 1 Misfires 2 | . . . . . . . . . 2 . Alerts 2 | . . . . . . 2 . . . . Misdirections 1 | . . . . . . 1 . . . . Overload Shots . | . . . . . . . . . . . Overflow Damage 1053 | . . . . . 636 . . . 407 10 Projectiles 373 | . . . . . 314 . . . 49 10 Explosions 627 | . . . . . 322 . . . 305 . Melee 53 | . . . . . . . . . 53 . Knockbacks 11 | . . . . . . . . . 11 . Impact . | . . . . . . . . . . . Kinetic 9 | . . . . . . . . . 9 . Secondary 2 | . . . . . . . . . 2 . Self-Inflicted Damage 402 | . . . . . 54 . . . 348 . Shots 6 | . . . . . 1 . . . 5 . Rammed . | . . . . . . . . . . . Targets Rammed 9 | . 3 2 . 1 1 1 . . 1 . Kicked 9 | . 3 2 . 1 1 1 . . 1 . Crushed . | . . . . . . . . . . . Highest Temperature 328 | 220 271 28 . . 169 270 . . 218 328 Average Temperature 70 | 112 81 19 . . 40 97 . . 51 65 Received Heat Transfer 2124 | . 303 40 . . 324 360 . . 1031 66 Effects 1 | . . . . . . 1 . . . . Interference 1 | . . . . . . 1 . . . . Siege Activations . | . . . . . . . . . . . Robots Corrupted . | . . . . . . . . . . . Combat Hostiles . | . . . . . . . . . . . Parts Fried . | . . . . . . . . . . . Impact Corruptions . | . . . . . . . . . . . Robots Melted 3 | . . . . . 3 . . . . . Combat Hostiles 3 | . . . . . 3 . . . . . Parts Melted 24 | 4 11 . . . 7 1 . . . 1 Heat Transferred 11403 | 518 3552 37 . . 5520 925 . . 37 814 Parts Sabotaged . | . . . . . . . . . . . Parts Stolen . | . . . . . . . . . . . Parts Stripped . | . . . . . . . . . . . Power Chain Reactions . | . . . . . . . . . . . Alert | -11 -10 -10 -10 -9 -8 -7 -6 -6 -6 -5 ------- Run | Yrd Mat Min Exi Min Mat Fac Fac Was Fac Fac Peak Influence 1088 | 15 273 122 . . 1088 628 174 60 779 459 Initial 426 | . 9 106 . . . 426 154 60 42 370 Average 324 | 3 89 109 . . 494 429 169 60 535 239 Maximum Alert Level 3 | . 1 . . . 3 2 . . 3 2 Low Security (%) 42 | 100 89 100 . 100 20 . 100 100 15 45 Level 1 16 | . 10 . . . 9 32 . . 5 38 Level 2 32 | . . . . . 35 67 . . 57 15 Level 3 9 | . . . . . 34 . . . 22 . Level 4 . | . . . . . . . . . . . Level 5 . | . . . . . . . . . . . High Security . | . . . . . . . . . . . Max Security . | . . . . . . . . . . . Squads Dispatched 43 | . 4 . . . 5 6 1 . 19 8 Investigation 10 | . 2 . . . . 2 . . 4 2 Extermination 8 | . . . . . . 2 . . 3 3 Reinforcement 20 | . 2 . . . 5 2 1 . 7 3 Assault 3 | . . . . . . . . . 3 . Garrison 2 | . . . . . . . . . 2 . Intercept . | . . . . . . . . . . . Searches Triggered . | . . . . . . . . . . . Construction Impeded 3 | . . . . . 1 . . . 2 . Haulers Reinforced 1 | . . . . . . . . . . 1 Active Scanning Responses . | . . . . . . . . . . . Cargo Convoy Interrupts 1 | . . . . . . 1 . . . . Stealth | -11 -10 -10 -10 -9 -8 -7 -6 -6 -6 -5 --------- Run | Yrd Mat Min Exi Min Mat Fac Fac Was Fac Fac Distress Signals 6 | . 1 . . . 2 1 . . 2 . Communications Jammed 7 | . . . . . . . . . 4 3 Distress Signals 7 | . . . . . . . . . 4 3 Times Spotted 186 | . 30 4 . . 42 25 1 . 61 23 Peak Tracking Total 11 | . 4 4 . . 8 3 1 . 11 5 Tactical Retreats 34 | . 3 1 . . 2 7 . . 16 5 Traps | -11 -10 -10 -10 -9 -8 -7 -6 -6 -6 -5 ------- Run | Yrd Mat Min Exi Min Mat Fac Fac Was Fac Fac Traps Triggered 11 | . 1 . . . . 3 1 . 4 2 Indirectly . | . . . . . . . . . . . Trap Hack Attempts . | . . . . . . . . . . . Triggered . | . . . . . . . . . . . Disarmed . | . . . . . . . . . . . Reprogrammed . | . . . . . . . . . . . Reused . | . . . . . . . . . . . Traps Extracted . | . . . . . . . . . . . Installed . | . . . . . . . . . . . Triggered 1 | . . . . . . 1 . . . . Machines | -11 -10 -10 -10 -9 -8 -7 -6 -6 -6 -5 ---------- Run | Yrd Mat Min Exi Min Mat Fac Fac Was Fac Fac Machines Disabled 24 | . . . . . 10 . . . 14 . Max in Single Turn 4 | . . . . . 2 . . . 4 . Garrison Access 5 | . . . . . . 2 . . 3 . Machines Repaired . | . . . . . . . . . . . Machines Dismantled 1 | . . . . . . . . . 1 . Machines Sabotaged . | . . . . . . . . . . . Overloaded Fab Kills . | . . . . . . . . . . . Hacking | -11 -10 -10 -10 -9 -8 -7 -6 -6 -6 -5 --------- Run | Yrd Mat Min Exi Min Mat Fac Fac Was Fac Fac Machines Accessed 41 | . 6 1 1 . 4 6 . . 15 8 Terminals 22 | . 5 . . . 3 3 . . 8 3 Fabricators 3 | . . . . . . . . . 2 1 Repair Stations . | . . . . . . . . . . . Recycling Units 3 | . 1 . . . . . . . . 2 Scanalyzers 6 | . . . . . 1 1 . . 2 2 Garrison Access 5 | . . . . . . 2 . . 3 . Total Hacks 131 | . 30 1 1 . 15 10 . . 49 25 Successful 68 | . 16 1 1 . 10 5 . . 21 14 Failed 62 | . 14 . . . 5 5 . . 27 11 Catastrophic 13 | . 2 . . . . 2 . . 7 2 Database Lockouts 1 | . . . . . . . . . 1 . Manual 63 | . 19 . 1 . 12 5 . . 17 9 Terminals 77 | . 27 . . . 11 5 . . 25 9 Fabricators 12 | . . . . . . . . . 6 6 Repair Stations . | . . . . . . . . . . . Recycling Units 8 | . 3 . . . . . . . . 5 Scanalyzers 23 | . . . . . 4 3 . . 11 5 Garrison Access 9 | . . . . . . 2 . . 7 . Terminal Hacks 20 | . 10 1 1 . 1 1 . . 4 2 Part Schematic 5 | . 3 . . . . . . . 2 . Robot Analysis 5 | . 4 . . . 1 . . . . . Prototype ID Bank 2 | . 2 . . . . . . . . . Open Door 1 | . . 1 . . . . . . . . Terminal Index 3 | . . . . . . 1 . . 1 1 Fabricator Index 1 | . . . . . . . . . . 1 Alert Level 1 | . . . . . . . . . 1 . Zone Layout 1 | . 1 . . . . . . . . . Derelict Proto ID Bank 1 | . . . 1 . . . . . . . Fabricator Hacks 6 | . . . . . . . . . 3 3 Network Status 1 | . . . . . . . . . . 1 Load Schematic 3 | . . . . . . . . . 2 1 Build 2 | . . . . . . . . . 1 1 Repair Station Hacks . | . . . . . . . . . . . Recycling Unit Hacks 2 | . . . . . . . . . . 2 Retrieve Components 2 | . . . . . . . . . . 2 Scanalyzer 17 | . . . . . 4 1 . . 9 3 Insert Component 10 | . . . . . 2 1 . . 5 2 Analyze 7 | . . . . . 2 . . . 4 1 Garrison Access Hacks 4 | . . . . . . 2 . . 2 . Seal Access 4 | . . . . . . 2 . . 2 . Unauthorized Hacks 19 | . 6 . . . 5 1 . . 3 4 Terminals 17 | . 6 . . . 5 1 . . 3 2 Track 2 | . 2 . . . . . . . . . Assimilate 3 | . 1 . . . 1 . . . 1 . Botnet 9 | . 2 . . . 3 1 . . 2 1 Operators 3 | . 1 . . . 1 . . . . 1 Fabricators . | . . . . . . . . . . . Repair Stations . | . . . . . . . . . . . Recycling Units 2 | . . . . . . . . . . 2 Reject 1 | . . . . . . . . . . 1 Mask 1 | . . . . . . . . . . 1 Scanalyzers . | . . . . . . . . . . . Garrison Access . | . . . . . . . . . . . Data Cores Recovered . | . . . . . . . . . . . Used . | . . . . . . . . . . . Hacking Detections 31 | . 6 . . . 3 4 . . 12 6 Full Trace Events 9 | . 1 . . . 1 1 . . 4 2 Feedback Events . | . . . . . . . . . . . Feedback Blocked . | . . . . . . . . . . . Robot Schematics Acquired . | . . . . . . . . . . . Robots Built . | . . . . . . . . . . . Authchips . | . . . . . . . . . . . Time . | . . . . . . . . . . . Total Robot Build Rating . | . . . . . . . . . . . Part Schematics Acquired 12 | . 3 . . . 2 . . . 6 1 Parts Built 2 | . . . . . . . . . 2 . Authchips . | . . . . . . . . . . . Time 153 | . . . . . . . . . 47 106 Total Part Build Rating 10 | . . . . . . . . . 10 . Parts Repaired . | . . . . . . . . . . . Time . | . . . . . . . . . . . Parts Recycled . | . . . . . . . . . . . Recycled Matter . | . . . . . . . . . . . Retrieved Matter . | . . . . . . . . . . . Retrieved Components 4 | . . . . . . . . . . 4 Parts Scanalyzed 8 | . . . . . 2 1 . . 4 1 Part Schematics Acquired 7 | . . . . . 2 . . . 4 1 Parts Damaged . | . . . . . . . . . . . Bothacking | -11 -10 -10 -10 -9 -8 -7 -6 -6 -6 -5 ------------ Run | Yrd Mat Min Exi Min Mat Fac Fac Was Fac Fac Used RIF Installer . | . . . . . . . . . . . Robots Hacked . | . . . . . . . . . . . Non-combat . | . . . . . . . . . . . Combat . | . . . . . . . . . . . Robot Hacks Applied . | . . . . . . . . . . . Relay Couplers Released 2 | . . . . . . . . . 2 . Machine Destruction 2 | . . . . . . . . . 2 . Fabnet Peak Effective % . | . . . . . . . . . . . Robots Rewired 1 | . . . . . . . . . . 1 Allies Hacked . | . . . . . . . . . . . Hacks Repelled . | . . . . . . . . . . . Allies | -11 -10 -10 -10 -9 -8 -7 -6 -6 -6 -5 -------- Run | Yrd Mat Min Exi Min Mat Fac Fac Was Fac Fac Total Allies 24 | . . . . 2 . . . 20 1 1 Largest Group 20 | . . . . 2 2 . . 20 20 1 Highest-Rated Group 762 | . . . . 45 45 . . 762 762 49 Highest-Rated Ally 50 | . . . . 31 31 . . 50 50 49 Total Orders 13 | . . . . . . 3 . . 2 8 STAY 3 | . . . . . . . . . . 3 FOLLOW 1 | . . . . . . . . . . 1 EXPLORE 3 | . . . . . . . . . . 3 RETURN 6 | . . . . . . 3 . . 2 1 Ally Attacks 125 | . . . . . 14 25 . . 79 7 Total Damage 2941 | . . . . . 189 84 . . 2430 238 Kills 20 | . . . . . 1 . . . 17 2 Allies Corrupted 1 | . . . . . . . . . . 1 Allies Melted . | . . . . . . . . . . . Intel | -11 -10 -10 -10 -9 -8 -7 -6 -6 -6 -5 ------- Run | Yrd Mat Min Exi Min Mat Fac Fac Was Fac Fac Robot Analysis Total 5 | . 4 . . . 1 . . . . . Derelict Logs Recovered 1 | . . . . 1 . . . . . . Drone Launches 21 | . . . . . . 11 . . 5 5 Drone Recoveries 16 | . . . . . . 11 . . 2 3 Exploration | -11 -10 -10 -10 -9 -8 -7 -6 -6 -6 -5 ------------- Run | Yrd Mat Min Exi Min Mat Fac Fac Was Fac Fac Turns Passed 9056 | 109 1191 316 602 414 858 1282 83 324 2236 1641 Spaces Moved 6985 | 66 684 247 308 159 463 802 63 208 2360 1625 Core 162 | 9 . . . . . . . . 153 . Treads . | . . . . . . . . . . . Legs 3594 | 57 684 247 308 159 463 802 63 208 603 . Wheels 670 | . . . . . . . . . 670 . Hover . | . . . . . . . . . . . Flight 2559 | . . . . . . . . . 934 1625 Fastest Speed 25 | 50 120 120 120 260 122 120 120 120 29 25 Average Speed 93 | 110 120 120 194 260 148 121 120 120 75 32 Slowest Speed 260 | 120 120 120 260 260 192 122 120 120 150 117 Overloaded Moves . | . . . . . . . . . . . Propulsion Burnouts . | . . . . . . . . . . . Robots Hopped 15 | . . . . . . . . . 7 8 Cave-ins Triggered . | . . . . . . . . . . . Exploration Rate (%) 45 | 4 79 62 70 57 49 19 2 88 48 22 Regions Visited 10 Branch Regions 3 Pre-discovered Areas . | . . . . . . . . . . . Known Exits Taken . | . . . . . . . . . . . Unknown Exits Taken 8 | 1 1 1 1 1 1 1 . . 1 . Scrap Searched 1 | . . 1 . . . . . . . . Spaces Dug 28 | . . . . . . 1 . . 4 23 Terrain Destroyed 394 | . . 1 . . 246 2 . . 114 31 Melee 3 | . . . . . . . . . 3 . Projectile 42 | . . 1 . . 3 2 . . 9 27 AOE 345 | . . . . . 243 . . . 102 . Terrain Rammed . | . . . . . . . . . . . Walls Destroyed . | . . . . . . . . . . . Machines Disabled . | . . . . . . . . . . . Actions | -11 -10 -10 -10 -9 -8 -7 -6 -6 -6 -5 --------- Run | Yrd Mat Min Exi Min Mat Fac Fac Was Fac Fac Total 9002 | 83 939 259 313 159 541 1015 69 281 2717 2626 Wait 1374 | . 153 2 . . 8 123 . 63 209 816 Move 6947 | 65 683 246 307 158 462 802 63 207 2345 1609 Hop 15 | . . . . . . . . . 7 8 Pick Up 58 | 3 13 2 1 . 9 7 . 5 13 5 Fast Attach 65 | 6 1 . . . 3 6 1 . 22 26 Attach 38 | 1 2 . 1 . 5 5 3 1 16 4 Detach 21 | . 1 . 2 . 1 1 1 . 5 10 Swap 38 | . 4 3 1 . 9 6 . 4 7 4 Drop 60 | . 11 1 1 . 11 7 . 1 15 13 Fire 295 | 8 68 3 . . 32 49 . . 41 94 Melee 28 | . . . . . . 9 1 . 18 . Ram . | . . . . . . . . . . . Kick 8 | . 3 2 . 1 1 . . . 1 . Crush . | . . . . . . . . . . . Escape Stasis 44 | . . . . . . . . . 8 36 Rewire 1 | . . . . . . . . . . 1 Trap . | . . . . . . . . . . . Miscellaneous 10 | . . . . . . . . . 10 . Route ------- -11/Scrapyard -10/Materials (discovered 4 exits: [*Mat x3] / *Min) -10/Mines (discovered 3 exits: [*Mat x2] / *Exi) -10/Exiles -9/Mines -8/Materials (discovered 2 exits: *Fac x2) -7/Factory -6/Factory -6/Waste -6/Factory -5/Factory (discovered 1 exit: [*Fac]) History --------- Turn | Location | Event 2 | -11/Scrapyard | Discovered new exit (range 16) 110 | -11/Scrapyard | Entered Materials 310 | -10/Materials | Build established: Mutant 448 | -10/Materials | Discovered new exit (range 3) 761 | -10/Materials | Discovered new exit (range 16) 947 | -10/Materials | Core integrity fell below 50% 1113 | -10/Materials | Discovered new exit (range 14) 1262 | -10/Materials | Discovered new exit (range 5) 1301 | -10/Materials | Entered Mines 1327 | -10/Mines | Discovered new exit (range 14) 1340 | -10/Mines | Found the Drone Emporium 1346 | -10/Mines | Found Prototype Device 1347 | -10/Mines | Identified Thief Drone Bay 1388 | -10/Mines | Discovered new exit (range 15) 1400 | -10/Mines | Met a Derelict bent on vengeance 1475 | -10/Mines | A weapon hastily lodged in a ceiling crevice suddenly fell to the ground 1526 | -10/Mines | Assembled infested the area 1611 | -10/Mines | Deemed a non-threat by the Exiles lab entrance 1612 | -10/Mines | Discovered new exit (range 5) 1617 | -10/Mines | Entered Exiles 1646 | -10/Exiles | Met 8R-AWN 1667 | -10/Exiles | Met EX-HEX 1757 | -10/Exiles | Met EX-DEC 1810 | -10/Exiles | Met EX-BIN 1837 | -10/Exiles | Aligned with FarCom system 1839 | -10/Exiles | Given EX-Vault access code 1882 | -10/Exiles | Opened EX-Vault 1924 | -10/Exiles | Found YOLO Cannon 1977 | -10/Exiles | Warned to stay clear of 0b10 Research branches 2190 | -10/Exiles | Discovered new exit (range 12) 2219 | -10/Exiles | Left Exiles lab with YOLO Cannon 2219 | -10/Exiles | Entered Mines 2547 | -9/Mines | Learned location of 1 exit from Lower Caves 2604 | -9/Mines | Discovered new exit (range 11) 2633 | -9/Mines | Entered Materials 2633 | -8/Materials | Accompanied by 2 allies 2633 | -8/Materials | Evolved 4 slots: Propulsion x2, Utility x2 2638 | -8/Materials | Led the pair of lost Derelicts to an unsafe place 2855 | -8/Materials | Destroyed 7 combat bots 2926 | -8/Materials | Discovered new exit (range 10) 3135 | -8/Materials | Discovered new exit (range 16) 3389 | -8/Materials | Destroyed 10 combat bots 3491 | -8/Materials | Entered Factory 3491 | -7/Factory | Evolved 2 slots: Propulsion x1, Utility x1 4033 | -7/Factory | Build established: Scavenger-Mutant 4273 | -7/Factory | System corruption reached 10% 4303 | -7/Factory | Lost 5 parts (1n2u2w) 4630 | -7/Factory | Cargo convoy interrupted 4713 | -7/Factory | Discovered new exit (range 16) 4724 | -7/Factory | Build established: Hacker-Mutant 4773 | -7/Factory | Entered another Factory area 4773 | -6/Factory | Evolved 2 slots: Propulsion x1, Utility x1 4856 | -6/Factory | Sucked down chute 4856 | -6/Factory | Entered Waste 4857 | -6/Waste | Joined by Warlord forces that had cleared the area 5101 | -6/Waste | Discovered new exit (range 12) 5180 | -6/Waste | Entered Factory 5180 | -6/Factory | Accompanied by 20 allies 5356 | -6/Factory | Murdered 11 allies 5466 | -6/Factory | Central database locked down 5827 | -6/Factory | Lost 5 allies 5880 | -6/Factory | First assault squad dispatched 6022 | -6/Factory | Destroyed 8 combat bots 6046 | -6/Factory | Released all parts (7) 6076 | -6/Factory | Lost 14 parts (2p6n4u2w) 6436 | -6/Factory | Build established: Scavenger-Mutant 6762 | -6/Factory | Core integrity fell below 50% 6811 | -6/Factory | Lost 4 parts (1p3n) 6903 | -6/Factory | Lost 7 parts (1p4n2u) 6998 | -6/Factory | Spotted B-75 Beast 7051 | -6/Factory | Fabricated Nuclear Pulse Thruster? 7090 | -6/Factory | Build established: Mutant 7393 | -6/Factory | Lost 3 parts (3n) 7411 | -6/Factory | Discovered new exit (range 8) 7416 | -6/Factory | Entered another Factory area 7416 | -5/Factory | Evolved 2 slots: Propulsion x1, Utility x1 7723 | -5/Factory | Build established: Hacker-Mutant 7921 | -5/Factory | Discovered new exit (range 19) 8156 | -5/Factory | Build established: Hacker-Scout 8563 | -5/Factory | Lost 4 parts (3n1w) 8789 | -5/Factory | Build established: Hacker-Mutant 9046 | -5/Factory | System corruption reached 10% 9057 | -5/Factory | Self-destructed Last Messages --------------- 09026_ Slug penetrates Wall. 09027_ Phase Shifter destroyed. 09027_ Mni. Drone Bay destroyed. 09029_ Slug penetrates G-50 Soldier. 09029_ Penetrated by Slug. 09029_ Acquired Imp. Heat Sink. 09030_ U-05 Engineer builds a Wall. 09032_ Penetrated by Slug. 09037_ Acquired KE Penetrator. 09039_ Slug penetrates P-70 Sage. 09041_ Destroyed Imp. Heat Sink. 09043_ M7%>D0H>J VL,VMKENK0&LHVQJA=Y JV2 FWQE 09046_ P-70 Sage heat short circuits Tesla Rifle. 09048_ Nuclear Pulse Thruster destroyed. 09051_ P-70 Sage destroyed. 09053_ Dropped Hvy. Phase Cannon. 09056_ Acquired 53 matter. 09056_ Nuclear Pulse Array destroyed. 09056_ Power Amplifier destroyed. Map ----- +----------------------------------------------------+ | ?????????????????????????????????????????????????? | | ?????????????????????????????????????????????????? | | ?????????????????????????????????????????????????? | | ?????????????????????????????????????????????????? | | ?????????????????????????????????????????????????? | | ?????????????????????????????????????????????????? | | ?????????????????????????????????????????????????? | | ?????????????????????????????????????????????????? | | ?????????????????????????????????????????????????? | | ?????????????????????????????????????????????????? | | ?????????????????????????????????????????????????? | | ?????????????????????????????????????????????????? | | ????????????o????????????????????????????????????? | | ?????????????????????????????????????????????????? | | ?????????????????????????????????????????????????? | | ?????????????????????????????????????????????????? | | ?????????????????????????????????????????????????? | | ?????????????????????????????????????????????????? | | ??????????????????????????##############?????????? | | ??????????????????????????# #?????????? | | ??????????????????????????# #?????????? | | ??????????????????????????# #?????????? | | ????????????????????####### #?????????? | | ?????????############ # #?????????? | | ????????? # #?????????? | | #???????? @g[ #?????????? | | #???????? # ] #?????????? | | #????????????#### T##w u u# #?????????? | | #???????????????????##k h## #?????????? | | #????????????????????# ## #?????????? | | #????????????????????# h ## #?????????? | | #????????????????????# ###############?????????? | | #????????????????????# #???????????????????????? | | #????????????????????# ####?#####??????????????? | | #??????????????????### [ ######"T"#######????????? | | #??????????????????## |% ^ ########## | | #???????????????????#*^= ^ ^ # """" | | #???????????????????#^^ ^ ]]] # ""S" | | #???????????????????# ^ """"" # " | | #???????????????????# """"" # =!! | | #???#########???????# =%= "" # =!! | | #???# #???????#! # =! | | #???# """ ""#???????# = + | | ##### """ ""######### # """"" | | ## """ ""# # #### # """"" | | ## T# ] + #??# # """"" | | ## """ ""# # ########+##### # """"" | | ## """ ""######### #??# # # | | +#### """ ""#??????## #??# # ########## | | ## #??????# #??# """ """ # ########## | +----------------------------------------------------+ Best States ------------- Heat Dissipation 64 Energy Generation 20 Energy Capacity 290 Matter Stores 300 Matter Capacity 300 Sight Range 20 Terrain Scan Range 14 Terrain Scan Density 10 ECM Strength 1 Jamming Range 14 Power Amplification 30 Armor Coverage 1200 Phase Shifting 5 Evasion (%) 67 Melee Accuracy 24 Offensive Hacking 34 Defensive Hacking 10 Item Schematics ----------------- ECM Suite | -10/Materials | Hacked Hcp. Storage Unit | -10/Materials | Hacked Seismic Detector | -10/Materials | Hacked Hacking Suite | -8/Materials | Scanalyzed Adv. Visual Processing Unit | -8/Materials | Scanalyzed Imp. Propulsion Shielding | -6/Factory | Scanalyzed Enh. Gauss Cannon | -6/Factory | Scanalyzed Adv. Power Amplifier | -6/Factory | Scanalyzed Plasma Cutter | -6/Factory | Scanalyzed Xenon Bombardment Thruster | -6/Factory | Hacked Nuclear Pulse Thruster | -6/Factory | Hacked Nuclear Pulse Array | -5/Factory | Scanalyzed Robot Schematics ------------------ None Fabricated ------------ Nuclear Pulse Thruster | x2 | -6/Factory Alien Tech Used ----------------- None Achievements -------------- None Challenges ------------ None Game ------ Seed WarlordShieldLaser Manual? 0 Play Time 01:30:55 Cumulative 140.1 hours Start 2024.11.05 @ 15:10:55 End 2024.11.06 @ 11:27:28 Sessions 5 Manual Loads 0 Difficulty Rogue Special Mode None Game No. 73 Rogue 10 Adventurer 63 Explorer 0 Win Type - Total 6 Types 6/0/0/0/0/0/0/0/0 Lore% 65 Gallery% 65 Achievement% 54 Wizard Run 0 Options --------- Layout 1 ASCII 0 Keyboard 1 Movement Vi Keybinds 0 Fullscreen 1 Font 24/Terminus Map View 50x35 Zoom Use 0% Tactical HUD 1 Map Filters NONE Filters NONE Steam 1 RUN: 31ec6f86-1ab8-49ef-a295-fe4f5617fc8c